fUSD/lending_fUSD_20240801
["ID","MTS","AMOUNT","RATE_DAILY","PERIOD"]
[333833380,1722538244741,-155.0,0.0002012,2]
[333833382,1722538244751,-500.0,0.00020146,2]
[333833384,1722538244761,-500.0,0.00020156,2]
[333833386,1722538244771,-411.37788537,0.00020165,2]
[333833388,1722538244780,-6989.72863459,0.000202,2]
[333833390,1722538244790,-1012.48,0.0002024,2]
[333833392,1722538244799,-606.86659553,0.00020264,2]
[333833394,1722538244809,-500.0,0.00020306,2]
[333833396,1722538244818,-411.37788537,0.00020431,2]
[333833398,1722538244829,-376.39530055,0.00020484,2]
[333833400,1722538244839,-3000.0,0.000205,2]
[333833402,1722538244849,-172.68,0.00020548,2]
[333833404,1722538244858,-500.0,0.00020577,2]
[333833406,1722538244868,-411.37788537,0.00020624,2]
[333833409,1722538244878,-376.39530055,0.00020712,2]
[333833411,1722538244888,-2800.0,0.00020765,2]
[333833413,1722538244898,-411.37788537,0.00020893,2]
[333833415,1722538244908,-752.83188168,0.000209,2]
[333833417,1722538244918,-993.69344301,0.000209,3]
[333833419,1722538244927,-500.0,0.00020915,2]
[333833421,1722538244939,-1000.0,0.00020915,2]
[333833423,1722538244948,-500.0,0.00020916,2]
[333833425,1722538244958,-500.0,0.00020921,2]
[333833427,1722538244968,-4436.22144717,0.00020997,3]
[333833429,1722538244977,-500.0,0.00020999,2]
[333833431,1722538244987,-155.0,0.00020999,2]
[333833433,1722538244997,-500000.0,0.00021,2]
[333833435,1722538245007,-265.48,0.00021,2]
[333833437,1722538245017,-1000.0,0.00021003,2]
[333833439,1722538245027,-500.0,0.00021003,2]
[333833440,1722538245036,-2800.0,0.00021032,2]
[333833441,1722538245046,-376.39530055,0.00021063,2]
[333833442,1722538245056,-500.0,0.00021119,2]
[333833443,1722538245065,-500.0,0.00021144,2]
[333833444,1722538245075,-376.39530055,0.00021203,2]
[333833445,1722538245085,-500.0,0.00021225,2]
[333833446,1722538245094,-500.0,0.00021254,2]
[333833447,1722538245103,-472.9,0.00021261,2]
[333833448,1722538245113,-500.0,0.00021355,2]
[333833449,1722538245123,-411.37788537,0.00021368,2]
[333833451,1722538245133,-303.073355,0.0002137,2]
[333833453,1722538245142,-5903.08,0.0002137,2]
[333833455,1722538245153,-411.37788537,0.00021409,2]
[333833457,1722538245162,-500.0,0.00021427,2]
[333833459,1722538245172,-500.0,0.00021435,2]
[333833461,1722538245183,-2800.0,0.00021456,2]
[333833463,1722538245193,-2800.0,0.00021499,2]
[333833465,1722538245202,-1012.48,0.0002155,2]
[333833467,1722538245212,-161.71587677,0.00021567,2]
[333833469,1722538245222,-500.0,0.00021595,2]
[333833472,1722538245234,-376.39530055,0.00021598,2]
[333833473,1722538245247,-500.0,0.00021641,2]
[333833475,1722538245257,-376.39530055,0.00021657,2]
[333833478,1722538245267,-2800.0,0.00021672,2]
[333833480,1722538245278,-500.0,0.00021791,2]
[333833482,1722538245288,-500.0,0.00021847,2]
[333833484,1722538245298,-200.0,0.000219,2]
[333833486,1722538245307,-2000.0,0.000219,2]
[333833488,1722538245319,-411.37788537,0.00021904,2]
[333833490,1722538245329,-150.0,0.00021918,2]
[333833492,1722538245339,-2325.81,0.00021918,2]
[333833494,1722538245349,-500.0,0.00021918,2]
[333833496,1722538245359,-500.0,0.00021918,2]
[333833497,1722538245368,-500.0,0.00021918,2]
[333833500,1722538245378,-500.0,0.00021918,2]
[333833502,1722538245388,-500.0,0.00021918,2]
[333833503,1722538245397,-500.0,0.00021918,2]
[333833505,1722538245407,-150.0,0.00021918,2]
[333833507,1722538245417,-500.0,0.00021999,2]
[333833509,1722538245427,-800.0,0.00022,2]
[333833511,1722538245439,-500.0,0.00022039,2]
[333833514,1722538245450,-376.39530055,0.0002206,2]
[333833516,1722538245459,-411.37788537,0.0002208,2]
[333833518,1722538245469,-500.0,0.00022104,2]
[333833520,1722538245479,-303.073355,0.00022192,2]
[333833522,1722538245488,-2800.0,0.00022208,2]
[333833524,1722538245498,-500.0,0.00022228,2]
[333833526,1722538245507,-411.37788537,0.00022236,2]
[333833528,1722538245517,-500.0,0.00022396,2]
[333833530,1722538245527,-506.76157279,0.00022401,2]
[333833531,1722538245537,-376.39530055,0.00022462,2]
[333833534,1722538245547,-150.0,0.00022495,2]
[333833535,1722538245557,-376.39530055,0.00022539,2]
[333833538,1722538245566,-500.0,0.00022663,2]
[333833539,1722538245576,-411.37788537,0.00022727,2]
[333833541,1722538245586,-150.0,0.00022755,2]
[333833543,1722538245596,-411.37788537,0.00022775,2]
[333833545,1722538245606,-376.39530055,0.00022815,2]
[333833547,1722538245616,-1012.48,0.0002286,2]
[333833549,1722538245626,-500.0,0.00022868,2]
[333833551,1722538245635,-500.0,0.00022895,2]
[333833553,1722538245645,-752.83188167,0.000229,2]
[333833555,1722538245655,-993.69344299,0.000229,4]
[333833557,1722538245665,-500.0,0.00022915,2]
[333833559,1722538245674,-500.0,0.0002299,2]
[333833561,1722538245684,-150.0,0.00022999,10]
[333833563,1722538245694,-16744.01945214,0.00023,2]
[333833565,1722538245703,-200.0,0.00023,2]
[333833567,1722538245713,-1000.0,0.00023007,2]
[333833569,1722538245723,-303.073355,0.00023014,2]
[333833571,1722538245733,-500.0,0.00023022,2]
[333833573,1722538245742,-150.0,0.00023071,2]
[333833575,1722538245752,-500.0,0.00023102,2]
[333833577,1722538245761,-411.37788537,0.00023104,2]
[333833579,1722538245771,-500.0,0.00023118,2]
[333833581,1722538245781,-1400.0,0.00023164,2]
[333833583,1722538245790,-376.39530055,0.00023175,2]
[333833585,1722538245800,-1400.0,0.00023194,2]
[333833587,1722538245810,-180.0,0.00023205,2]
[333833589,1722538245821,-1200.0,0.00023223,2]
[333833591,1722538245831,-161.71587677,0.00023233,2]
[333833593,1722538245840,-3000.0,0.000233,2]
[333833594,1722538245850,-500.0,0.00023419,2]
[333833596,1722538245860,-411.37788537,0.0002347,2]
[333833598,1722538245870,-166.56968612,0.00023472,2]
[333833600,1722538245880,-376.39530055,0.000235,2]
[333833602,1722538245890,-472.9,0.00023525,2]
[333833604,1722538245899,-6668.19470375,0.0002354,2]
[333833606,1722538245910,-500.0,0.00023549,2]
[333833608,1722538245920,-376.39530055,0.00023572,2]
[333833610,1722538245930,-150.0,0.00023648,2]
[333833612,1722538245940,-500.0,0.00023656,2]
[333833614,1722538245950,-2800.0,0.0002366,2]
[333833616,1722538245959,-1400.0,0.00023692,2]
[333833618,1722538245969,-697.77787,0.000237,2]
[333833620,1722538245979,-411.37788537,0.00023705,2]
[333833622,1722538245989,-150.0,0.0002372,2]
[333833624,1722538245999,-500.0,0.0002382,2]
[333833626,1722538246008,-150.0,0.00023822,2]
[333833628,1722538246019,-150.0,0.00023825,2]
[333833630,1722538246029,-150.0,0.00023835,2]
[333833632,1722538246039,-303.073355,0.00023836,2]
[333833634,1722538246048,-150.0,0.00023851,2]
[333833636,1722538246058,-500.0,0.00023854,2]
[333833638,1722538246067,-150.0,0.00023855,2]
[333833640,1722538246076,-150.0,0.00023857,2]
[333833642,1722538246085,-150.0,0.00023858,2]
[333833644,1722538246095,-155.0,0.00023873,2]
[333833648,1722538246105,-155.0,0.00023873,2]
[333833651,1722538246115,-155.0,0.00023873,2]
[333833655,1722538246125,-150.0,0.00023874,2]
[333833658,1722538246134,-150.0,0.00023881,2]
[333833661,1722538246144,-150.0,0.00023884,2]
[333833663,1722538246155,-150.0,0.00023901,2]
[333833665,1722538246164,-150.0,0.00023909,2]
[333833667,1722538246174,-150.0,0.0002391,2]
[333833669,1722538246185,-150.0,0.00023929,2]
[333833670,1722538246194,-150.0,0.00023936,2]
[333833672,1722538246203,-150.0,0.00023937,2]
[333833674,1722538246214,-500.0,0.00023938,2]
[333833676,1722538246223,-150.0,0.00023953,2]
[333833678,1722538246234,-324.94072918,0.00023969,2]
[333833680,1722538246247,-150.0,0.00023972,2]
[333833683,1722538246258,-500.0,0.0002398,2]
[333833685,1722538246267,-150.0,0.00023981,2]
[333833686,1722538246277,-150.0,0.00023983,2]
[333833688,1722538246287,-150.0,0.00023989,2]
[333833690,1722538246297,-297.10764839,0.00024,2]
[333833692,1722538246307,-194.88914122,0.00024,15]
[333833694,1722538246318,-850.0,0.00024,2]
[333833696,1722538246329,-150.0,0.00024027,2]
[333833698,1722538246338,-150.0,0.00024028,2]
[333833700,1722538246347,-150.0,0.0002403,2]
[333833702,1722538246357,-150.0,0.00024032,2]
[333833704,1722538246366,-376.39530055,0.00024034,2]
[333833706,1722538246376,-2500.0,0.00024036,2]
[333833708,1722538246386,-150.0,0.00024041,2]
[333833710,1722538246396,-150.0,0.00024045,2]
[333833712,1722538246406,-150.0,0.00024048,2]
[333833714,1722538246416,-150.0,0.00024055,2]
[333833716,1722538246426,-150.0,0.00024057,2]
[333833718,1722538246438,-2500.0,0.00024074,2]
[333833720,1722538246448,-150.0,0.00024078,2]
[333833722,1722538246458,-411.37788537,0.00024084,2]
[333833724,1722538246467,-500.0,0.00024086,2]
[333833726,1722538246477,-150.0,0.00024087,2]
[333833728,1722538246487,-150.0,0.00024087,2]
[333833730,1722538246497,-150.0,0.00024089,2]
[333833732,1722538246506,-150.0,0.00024097,2]
[333833734,1722538246516,-376.39530055,0.0002411,2]
[333833736,1722538246526,-150.0,0.00024111,2]
[333833738,1722538246536,-150.0,0.00024114,2]
[333833740,1722538246545,-150.0,0.00024117,2]
[333833742,1722538246555,-205.2483348,0.00024118,2]
[333833744,1722538246565,-411.37788537,0.00024121,2]
[333833746,1722538246574,-150.0,0.00024133,2]
[333833748,1722538246585,-150.0,0.00024139,2]
[333833750,1722538246595,-270.456,0.00024143,2]
[333833752,1722538246605,-150.0,0.00024147,2]
[333833754,1722538246615,-150.0,0.00024155,2]
[333833756,1722538246625,-1012.48,0.0002417,2]
[333833758,1722538246635,-150.0,0.00024174,2]
[333833760,1722538246645,-150.0,0.0002418,2]
[333833762,1722538246655,-150.0,0.00024184,2]
[333833764,1722538246665,-150.0,0.00024185,2]
[333833766,1722538246675,-150.0,0.00024186,2]
[333833768,1722538246685,-150.0,0.00024193,2]
[333833770,1722538246695,-150.0,0.00024196,2]
[333833772,1722538246705,-500.0,0.00024196,2]
[333833774,1722538246715,-150.0,0.00024198,2]
[333833776,1722538246725,-1500.0,0.00024216,2]
[333833778,1722538246735,-150.0,0.00024218,2]
[333833780,1722538246745,-150.0,0.0002422,2]
[333833782,1722538246759,-150.0,0.00024221,2]
[333833784,1722538246769,-150.0,0.00024225,2]
[333833786,1722538246781,-150.0,0.00024226,2]
[333833788,1722538246791,-150.0,0.00024235,2]
[333833790,1722538246802,-150.0,0.00024236,2]
[333833792,1722538246813,-150.0,0.00024236,2]
[333833794,1722538246822,-150.0,0.00024251,2]
[333833797,1722538246834,-150.0,0.00024256,2]
[333833799,1722538246844,-1500.0,0.00024276,2]
[333833801,1722538246854,-150.0,0.00024288,2]
[333833803,1722538246863,-500.0,0.00024309,2]
[333833804,1722538246873,-150.0,0.00024319,2]
[333833806,1722538246882,-300.0,0.0002432,2]
[333833808,1722538246892,-1500.0,0.00024324,2]
[333833810,1722538246902,-152.27,0.00024329,30]
[333833812,1722538246911,-1500.0,0.00024351,2]
[333833814,1722538246921,-150.0,0.00024362,2]
[333833816,1722538246931,-150.0,0.00024365,2]
[333833818,1722538246942,-150.0,0.00024368,2]
[333833820,1722538246952,-150.0,0.00024377,2]
[333833823,1722538246962,-150.0,0.0002439,2]
[333833825,1722538246972,-150.0,0.00024394,2]
[333833827,1722538246982,-411.3778854,0.00024394,2]
[333833829,1722538246991,-1500.0,0.000244,2]
[333833831,1722538247001,-1500.0,0.000244,2]
[333833833,1722538247013,-3000.0,0.0002441,2]
[333833835,1722538247023,-150.0,0.00024412,2]
[333833836,1722538247032,-150.0,0.00024414,2]
[333833837,1722538247041,-150.0,0.00024415,2]
[333833838,1722538247050,-1500.0,0.00024423,2]
[333833839,1722538247060,-150.0,0.00024431,2]
[333833841,1722538247068,-500.0,0.00024432,2]
[333833843,1722538247078,-150.0,0.00024434,2]
[333833845,1722538247087,-150.0,0.00024463,2]
[333833847,1722538247098,-500.0,0.00024463,2]
[333833850,1722538247109,-376.39530068,0.00024469,2]
[333833852,1722538247119,-239.20544256,0.0002447,2]
[333833854,1722538247130,-150.0,0.00024471,2]
[333833856,1722538247140,-150.0,0.00024476,2]
[333833858,1722538247150,-150.0,0.00024479,2]
[333833860,1722538247161,-150.0,0.0002448,2]
[333833862,1722538247172,-150.0,0.00024481,2]
[333833863,1722538247184,-150.0,0.00024482,2]
[333833865,1722538247193,-150.0,0.00024485,2]
[333833867,1722538247203,-150.0,0.00024498,2]
[333833869,1722538247213,-150.0,0.00024501,2]
[333833871,1722538247223,-150.0,0.00024506,2]
[333833873,1722538247235,-1500.0,0.00024511,2]
[333833875,1722538247247,-300.0,0.00024519,2]
[333833876,1722538247256,-150.0,0.00024522,2]
[333833878,1722538247267,-150.0,0.0002455,2]
[333833880,1722538247278,-150.0,0.00024556,2]
[333833882,1722538247288,-150.0,0.0002456,2]
[333833884,1722538247298,-2500.0,0.00024562,2]
[333833887,1722538247308,-150.0,0.00024578,2]
[333833889,1722538247320,-150.0,0.00024579,2]
[333833891,1722538247330,-150.0,0.00024583,2]
[333833893,1722538247341,-150.0,0.00024585,2]
[333833894,1722538247350,-150.0,0.00024598,2]
[333833895,1722538247360,-494.0,0.000246,8]
[333833897,1722538247369,-565.0,0.000246,8]
[333833899,1722538247379,-174.0,0.000246,2]
[333833901,1722538247388,-174.0,0.000246,2]
[333833902,1722538247398,-174.0,0.000246,2]
[333833903,1722538247407,-349.0,0.000246,2]
[333833904,1722538247417,-349.0,0.000246,2]
[333833905,1722538247427,-192.0,0.000246,8]
[333833906,1722538247439,-158.907116,0.000246,6]
[333833907,1722538247450,-150.0,0.00024606,2]
[333833908,1722538247460,-150.0,0.00024607,2]
[333833909,1722538247469,-500.0,0.00024611,2]
[333833910,1722538247482,-150.0,0.00024617,2]
[333833911,1722538247492,-150.0,0.00024625,2]
[333833912,1722538247503,-150.0,0.00024629,2]
[333833913,1722538247513,-150.0,0.00024633,2]
[333833914,1722538247523,-150.0,0.00024644,2]
[333833915,1722538247533,-10441.95301441,0.0002465,2]
[333833916,1722538247543,-62867.1773433,0.00024653,2]
[333833917,1722538247554,-10001.6328518,0.00024653,2]
[333833918,1722538247563,-2616.0919368,0.00024653,2]
[333833919,1722538247573,-500.0,0.00024654,2]
[333833920,1722538247584,-150.0,0.00024657,2]
[333833921,1722538247594,-303.073355,0.00024658,2]
[333833922,1722538247605,-151.0,0.00024658,2]
[333833923,1722538247615,-5946.97813014,0.00024659,2]
[333833924,1722538247624,-210.50481927,0.00024659,2]
[333833925,1722538247634,-150.59812835,0.0002466,2]
[333833926,1722538247643,-150.59812835,0.0002466,2]
[333833927,1722538247653,-150.59812835,0.0002466,2]
[333833928,1722538247663,-150.59812835,0.0002466,2]
[333833929,1722538247673,-150.59812835,0.0002466,2]
[333833930,1722538247684,-150.59812835,0.0002466,2]
[333833931,1722538247695,-150.59812835,0.0002466,2]
[333833932,1722538247705,-150.59812835,0.0002466,2]
[333833934,1722538247714,-150.59812835,0.0002466,2]
[333833935,1722538247724,-150.59812835,0.0002466,2]
[333833936,1722538247734,-150.59812835,0.0002466,2]
[333833937,1722538247744,-150.59812835,0.0002466,2]
[333833938,1722538247754,-150.59812835,0.0002466,2]
[333833939,1722538247764,-150.59812835,0.0002466,2]
[333833940,1722538247774,-150.59812835,0.0002466,2]
[333833942,1722538247784,-151.09,0.0002466,2]
[333833944,1722538247794,-481.98901072,0.0002466,2]
[333833946,1722538247803,-481.98901072,0.0002466,2]
[333833948,1722538247813,-481.98901072,0.0002466,2]
[333833950,1722538247822,-481.98901072,0.0002466,2]
[333833952,1722538247833,-481.98901072,0.0002466,2]
[333833954,1722538247842,-481.98901072,0.0002466,2]
[333833956,1722538247852,-481.98901072,0.0002466,2]
[333833958,1722538247862,-481.98901072,0.0002466,2]
[333833960,1722538247871,-481.98901072,0.0002466,2]
[333833962,1722538247881,-481.98901072,0.0002466,2]
[333833964,1722538247891,-481.98901072,0.0002466,2]
[333833966,1722538247901,-481.98901072,0.0002466,2]
[333833968,1722538247911,-481.98901072,0.0002466,2]
[333833969,1722538247923,-481.98901072,0.0002466,2]
[333833970,1722538247932,-481.98901072,0.0002466,2]
[333833971,1722538247943,-481.98901072,0.0002466,2]
[333833972,1722538247953,-481.98901072,0.0002466,2]
[333833973,1722538247963,-481.98901072,0.0002466,2]
[333833974,1722538247972,-481.98901072,0.0002466,2]
[333833975,1722538247982,-3000.0,0.0002466,2]
[333833976,1722538247991,-2000.0,0.0002466,2]
[333833977,1722538248002,-200.0,0.0002466,2]
[333833978,1722538248341,-500.0,0.0002467,2]
[333833979,1722538248353,-1400.0,0.00024681,2]
[333833980,1722538248363,-25000.0,0.00024693,2]
[333833981,1722538248373,-232.03075128,0.000247,2]
[333833982,1722538248383,-395.5445,0.000247,2]
[333833983,1722538248393,-1810.43,0.00024713,2]
[333833984,1722538248403,-5000.0,0.00024718,2]
[333833985,1722538248413,-5000.0,0.00024723,2]
[333833986,1722538248423,-500.0,0.00024741,2]
[333833987,1722538248433,-5000.0,0.00024746,2]
[333833988,1722538248443,-5000.0,0.00024763,2]
[333833989,1722538248453,-2800.0,0.00024763,2]
[333833990,1722538248463,-25000.0,0.00024774,2]
[333833991,1722538248473,-5000.0,0.00024782,2]
[333833992,1722538248483,-8911.83,0.00024787,2]
[333833993,1722538248494,-500.0,0.00024792,2]
[333833994,1722538248504,-2500.0,0.00024801,2]
[333833995,1722538248514,-150.0,0.00024802,2]
[333833996,1722538248524,-2500.0,0.00024803,2]
[333833997,1722538248535,-2500.0,0.00024804,2]
[333833998,1722538248546,-500.0,0.0002481,2]
[333833999,1722538248556,-4653.03,0.00024815,2]
[333834000,1722538248566,-23690.34,0.00024816,2]
[333834001,1722538248576,-5000.0,0.00024829,2]
[333834002,1722538248587,-2500.0,0.00024832,2]
[333834003,1722538248597,-500.0,0.00024854,2]
[333834004,1722538248607,-5000.0,0.00024862,2]
[333834005,1722538248617,-150.0,0.00024875,2]
[333834006,1722538248628,-2500.0,0.00024878,2]
[333834007,1722538248637,-2800.0,0.00024895,2]
[333834008,1722538248648,-257.80406166,0.00024899,2]
[333834009,1722538248657,-155.0,0.00024899,2]
[333834010,1722538248667,-253.0,0.000249,2]
[333834011,1722538248677,-2000.0,0.000249,2]
[333834012,1722538248690,-2000.0,0.000249,2]
[333834013,1722538248699,-2000.0,0.000249,2]
[333834014,1722538248710,-2000.0,0.000249,2]
[333834015,1722538248721,-482.48,0.000249,2]
[333834016,1722538248731,-161.71587677,0.000249,2]
[333834017,1722538248741,-192.81477504,0.000249,2]
[333834018,1722538248751,-193.31,0.000249,2]
[333834019,1722538248762,-237.7,0.000249,2]
[333834020,1722538248773,-158.38541324,0.000249,2]
[333834021,1722538248782,-158.38541324,0.000249,2]
[333834022,1722538248792,-158.38541324,0.000249,2]
[333834023,1722538248802,-158.38541324,0.000249,2]
[333834024,1722538248817,-158.38541324,0.000249,2]
[333834025,1722538248827,-158.88,0.000249,2]
[333834026,1722538248837,-752.83188167,0.000249,2]
[333834027,1722538248848,-993.69344299,0.000249,4]
[333834028,1722538248858,-2000.0,0.00024907,2]
[333834029,1722538248869,-200.0,0.00024907,2]
[333834030,1722538248880,-5000.0,0.00024914,2]
[333834031,1722538248889,-25000.0,0.00024938,2]
[333834032,1722538248899,-25000.0,0.00024981,2]
[333834033,1722538248909,-5000.0,0.00024983,2]
[333834034,1722538248919,-53437.1007418,0.00024983,2]
[333834035,1722538248929,-44007.0241403,0.00024983,2]
[333834036,1722538248940,-34576.9475388,0.00024983,2]
[333834037,1722538248950,-25146.8709373,0.00024983,2]
[333834038,1722538248959,-15716.7943358,0.00024983,2]
[333834039,1722538248970,-8524.0959704,0.00024983,2]
[333834040,1722538248980,-7046.5590889,0.00024983,2]
[333834041,1722538248990,-5569.0222075,0.00024983,2]
[333834042,1722538249000,-4091.485326,0.00024983,2]
[333834043,1722538249010,-2613.9484446,0.00024983,2]
[333834044,1722538249020,-2675.3575868,0.00024983,2]
[333834045,1722538249030,-2734.6232368,0.00024983,2]
[333834046,1722538249040,-2793.8888867,0.00024983,2]
[333834047,1722538249050,-2853.1545367,0.00024983,2]
[333834048,1722538249059,-2912.4201867,0.00024983,2]
[333834049,1722538249070,-362.36904859,0.00024989,2]
[333834050,1722538249080,-10441.95301441,0.00024997,2]
[333834051,1722538249091,-52209.76507205,0.00024997,2]
[333834052,1722538249102,-150.0,0.00024999,2]
[333834053,1722538249112,-10372.99371671,0.00025,2]
[333834054,1722538249123,-225.84172224,0.00025,2]
[333834055,1722538249134,-1790.93896993,0.00025,2]
[333834056,1722538249144,-1023466.18241651,0.00025,2]
[333834057,1722538249154,-27272.62404299,0.00025,7]
[333834058,1722538249164,-155.18786098,0.00025,2]
[333834059,1722538249174,-2877.03411822,0.00025,2]
[333834060,1722538249184,-1789818.87412407,0.00025,2]
[333834061,1722538249195,-657216.76129789,0.00025,2]
[333834062,1722538249206,-61584.43961417,0.00025,2]
[333834063,1722538249216,-3195801.45237792,0.00025,2]
[333834064,1722538249227,-1002396.31198152,0.00025,2]
[333834065,1722538249240,-6282442.07933565,0.00025,2]
[333834066,1722538249251,-1991972.19234535,0.00025,2]
[333834067,1722538249261,-949999.0,0.00025,2]
[333834068,1722538249272,-471381.06884917,0.00025,2]
[333834069,1722538249283,-511794.20131727,0.00025,2]
[333834070,1722538249293,-462556.33134177,0.00025,2]
[333834071,1722538249304,-15971.51187245,0.00025,4]
[333834072,1722538249315,-329.55236149,0.00025,10]
[333834073,1722538249326,-2288.10719151,0.00025,2]
[333834074,1722538249337,-2215457.33088294,0.00025,2]
[333834075,1722538249348,-39000.0,0.00025,2]
[333834076,1722538249358,-420.57911107,0.00025,2]
[333834077,1722538249369,-503.74039025,0.00025,3]
[333834078,1722538249380,-810.0,0.00025,7]
[333834079,1722538249390,-500.0,0.00025,20]
[333834080,1722538249400,-1000.0,0.00025,7]
[333834081,1722538249410,-1000.0,0.00025,7]
[333834082,1722538249421,-1000.0,0.00025,7]
[333834083,1722538249431,-1000.0,0.00025,7]
[333834084,1722538249443,-1000.0,0.00025,7]
[333834085,1722538249453,-1000.0,0.00025,7]
[333834086,1722538249464,-1000.0,0.00025,7]
[333834087,1722538249474,-1000.0,0.00025,7]
[333834088,1722538249484,-1000.0,0.00025,7]
[333834089,1722538249495,-1000.0,0.00025,7]
[333834090,1722538249505,-1000.0,0.00025,7]
[333834091,1722538249515,-1000.0,0.00025,7]
[333834092,1722538249525,-1000.0,0.00025,7]
[333834093,1722538249536,-1000.0,0.00025,7]
[333834094,1722538249546,-1000.0,0.00025,7]
[333834095,1722538249556,-1000.0,0.00025,7]
[333834096,1722538249566,-1000.0,0.00025,7]
[333834097,1722538249576,-1000.0,0.00025,7]
[333834098,1722538249586,-1000.0,0.00025,7]
[333834099,1722538249597,-1000.0,0.00025,7]
[333834100,1722538249607,-1000.0,0.00025,7]
[333834101,1722538249617,-1000.0,0.00025,7]
[333834102,1722538249627,-1000.0,0.00025,7]
[333834103,1722538249637,-1000.0,0.00025,7]
[333834104,1722538249647,-1000.0,0.00025,7]
[333834105,1722538249657,-1000.0,0.00025,7]
[333834106,1722538249667,-1000.0,0.00025,7]
[333834107,1722538249677,-1000.0,0.00025,7]
[333834108,1722538249688,-1000.0,0.00025,7]
[333834109,1722538249699,-1000.0,0.00025,7]
[333834110,1722538249714,-1031.74,0.00025,7]
[333834111,1722538249727,-171.21795796,0.00025,2]
[333834112,1722538249737,-1526.12756933,0.00025,2]
[333834113,1722538249748,-272685.3224534,0.00025,2]
[333834114,1722538249806,-2404.67089321,0.00025,2]
[333834115,1722538249818,-1589.3,0.00025,2]
[333834116,1722538249831,-793.85117186,0.00025,2]
[333834117,1722538249843,-48086.72717888,0.00025,2]
[333834118,1722538249868,-17294.14893379,0.00025,2]
[333834119,1722538249910,-722.68329662,0.00013989,2]
[333834120,1722538249920,-155.0,0.00020999,2]
[333834121,1722538249930,-236.40881395,0.00024979,2]
[333834122,1722538249941,-1909.97688943,0.00025,2]
[333834123,1722538249957,-614.98003177,0.00013889,2]
[333834124,1722538249969,-560.70287457,0.00013889,2]
[333834125,1722538249979,-999.88024951,0.00025,2]
[333834126,1722538249991,-993.12736041,0.00025,2]
[333834127,1722538250007,-7059.3,0.00025,2]
[333834128,1722538252044,-31300.3552617,0.00025,2]
[333834129,1722538252294,-4425.3696,9.9e-05,2]
[333834130,1722538252304,-299.71268725,0.0001,2]
[333834131,1722538252317,-1296.95622263,0.00013066,2]
[333834132,1722538252327,-554.30546226,0.00014086,2]
[333834133,1722538252337,-264.23719677,0.00014261,2]
[333834134,1722538252347,-155.0,0.0001443,2]
[333834135,1722538252356,-1002.48431709,0.00015999,2]
[333834136,1722538252366,-530.53203882,0.00015999,2]
[333834137,1722538252376,-150.0,0.00023658,2]
[333834138,1722538252386,-150.0,0.00023721,2]
[333834139,1722538252396,-150.0,0.0002385,2]
[333834140,1722538252406,-150.0,0.0002386,2]
[333834141,1722538252416,-150.0,0.00023909,2]
[333834142,1722538252427,-150.0,0.00023942,2]
[333834143,1722538252436,-150.0,0.00023942,2]
[333834144,1722538252450,-150.0,0.00024036,2]
[333834145,1722538252460,-150.0,0.00024104,2]
[333834146,1722538252470,-150.0,0.00024115,2]
[333834147,1722538252479,-150.0,0.00024159,2]
[333834148,1722538252489,-150.0,0.00024197,2]
[333834149,1722538252500,-150.0,0.00024207,2]
[333834150,1722538252511,-150.0,0.00024241,2]